{"text_format":"3","workbook":"xlsx","n_sheets":1,"sheets":["LAPORAN PENGELUARAN"],"not_rendered":{"defined_names":4},"read":"whole","date_system":"1900"}

{"sheet":"LAPORAN PENGELUARAN","index":0,"n_rows":22,"n_cols":12,"rows_kept":22,"merged":[[1,2,1,3],[1,5,1,6],[3,2,3,3],[3,6,3,7],[3,10,3,11],[4,2,4,3],[4,6,4,7],[4,10,4,11],[20,2,20,4],[20,6,20,8],[21,2,21,4],[21,6,21,8]]}
[null,"LAPORAN PENGELUARAN",{"$nulls":8},"Hanya Untuk Keperluan Kantor"]
[null,"TUJUAN:",null,null,"NOMOR PERNYATAAN:",null,null,"PERIODE PEMBAYARAN","DARI:",{"$f":"IF(COUNTA(DataPengeluaran[Tanggal])=0,\"\",MIN(DataPengeluaran[Tanggal]))","v":""},"HINGGA:",{"$f":"IF(COUNTA(DataPengeluaran[Tanggal])=0,\"\",MAX(DataPengeluaran[Tanggal]))","v":""}]
[null,"INFORMASI KARYAWAN:"]
[null,"NAMA",{"$nulls":3},"POSISI",{"$nulls":3},"SSN"]
[null,"DEPARTEMEN",{"$nulls":3},"MANAJER",{"$nulls":3},"ID KARYAWAN"]
[]
[null,"Tanggal","Akun","Deskripsi","Hotel","Transportasi","Bahan bakar","Konsumsi","Telepon","Hiburan","Lain-lain","Total"]
[{"$nulls":11},{"$f":"SUM(DataPengeluaran[[#This Row],[Hotel]:[Lain-lain]])","v":{"v":0,"d":"Rp0.00"}}]
[{"$nulls":11},{"$f":"SUM(DataPengeluaran[[#This Row],[Hotel]:[Lain-lain]])","v":{"v":0,"d":"Rp0.00"}}]
[{"$nulls":11},{"$f":"SUM(DataPengeluaran[[#This Row],[Hotel]:[Lain-lain]])","v":{"v":0,"d":"Rp0.00"}}]
[{"$nulls":11},{"$f":"SUM(DataPengeluaran[[#This Row],[Hotel]:[Lain-lain]])","v":{"v":0,"d":"Rp0.00"}}]
[{"$nulls":11},{"$f":"SUM(DataPengeluaran[[#This Row],[Hotel]:[Lain-lain]])","v":{"v":0,"d":"Rp0.00"}}]
[{"$nulls":11},{"$f":"SUM(DataPengeluaran[[#This Row],[Hotel]:[Lain-lain]])","v":{"v":0,"d":"Rp0.00"}}]
[{"$nulls":11},{"$f":"SUM(DataPengeluaran[[#This Row],[Hotel]:[Lain-lain]])","v":{"v":0,"d":"Rp0.00"}}]
[{"$nulls":11},{"$f":"SUM(DataPengeluaran[[#This Row],[Hotel]:[Lain-lain]])","v":{"v":0,"d":"Rp0.00"}}]
[{"$nulls":11},{"$f":"SUM(DataPengeluaran[[#This Row],[Hotel]:[Lain-lain]])","v":{"v":0,"d":"Rp0.00"}}]
[{"$nulls":11},{"$f":"SUM(DataPengeluaran[[#This Row],[Hotel]:[Lain-lain]])","v":{"v":0,"d":"Rp0.00"}}]
[{"$nulls":11},{"$f":"SUM(DataPengeluaran[[#This Row],[Hotel]:[Lain-lain]])","v":{"v":0,"d":"Rp0.00"}}]
[null,"Total",null,null,{"$f":"SUBTOTAL(109,DataPengeluaran[Hotel])","v":{"v":0,"d":"Rp0.00"}},{"$f":"SUBTOTAL(109,DataPengeluaran[Transportasi])","v":{"v":0,"d":"Rp0.00"}},{"$f":"SUBTOTAL(109,DataPengeluaran[Bahan bakar])","v":{"v":0,"d":"Rp0.00"}},{"$f":"SUBTOTAL(109,DataPengeluaran[Konsumsi])","v":{"v":0,"d":"Rp0.00"}},{"$f":"SUBTOTAL(109,DataPengeluaran[Telepon])","v":{"v":0,"d":"Rp0.00"}},{"$f":"SUBTOTAL(109,DataPengeluaran[Hiburan])","v":{"v":0,"d":"Rp0.00"}},{"$f":"SUBTOTAL(109,DataPengeluaran[Lain-lain])","v":{"v":0,"d":"Rp0.00"}},{"$f":"SUBTOTAL(109,DataPengeluaran[Total])","v":{"v":0,"d":"Rp0.00"}}]
[{"$nulls":10},"SUBTOTAL",{"$f":"DataPengeluaran[[#Totals],[Total]]","v":{"v":0,"d":"Rp0.00"}}]
[null,"DISETUJUI:",{"$nulls":3},"CATATAN: ",{"$nulls":4},"UANG PANJAR",{"v":0,"d":"Rp0.00"}]
[{"$nulls":10},"TOTAL",{"$f":"Subtotal-Perkembangan","v":{"v":0,"d":"Rp0.00"}}]